bitfinex/quotes_SOLUSD_20241010
["timestamp","ask_amount","ask_price","bid_price","bid_amount"]
[1728586973397,0.8436388,137.49,137.47,25.4593]
[1728586974309,0.8436388,137.49,137.48,8.72839536]
[1728586974522,0.8436388,137.49,137.48,7.2737]
[1728586975324,0.8436388,137.49,137.47,18.185]
[1728586975501,0.8436388,137.49,137.47,25.4591]
[1728586976221,0.8436388,137.49,137.46,7.2747]
[1728586976726,0.8436388,137.49,137.46,18.1867]
[1728586976895,0.25098,137.48,137.46,25.4613]
[1728586978108,0.25098,137.48,137.45,7.2752]
[1728586978314,0.25098,137.46,137.43,25.466]
[1728586978620,0.25098,137.46,137.44,7.2758]
[1728586979002,7.2742,137.48,137.44,7.2758]
[1728586979003,0.25098,137.47,137.44,7.2758]
[1728586979610,0.25098,137.47,137.45,7.2753]
[1728586979816,0.25098,137.48,137.45,25.4636]
[1728586980224,0.25098,137.48,137.45,18.1883]
[1728586980428,0.25098,137.48,137.45,25.4631]
[1728586980627,7.52478,137.48,137.45,25.4631]
[1728586980818,0.25098,137.46,137.42,18.1914]
[1728586981011,7.3485388,137.49,137.4,22.35551142]
[1728586981210,0.12549,137.48,137.47,7.274]
[1728586981921,1.0946188,137.49,137.48,7.2737]
[1728586982118,1.0946188,137.49,137.47,7.2741]
[1728586982719,1.0946188,137.49,137.48,7.2737]
[1728586983632,0.8436388,137.49,137.48,7.2737]
[1728586985732,0.9691288,137.49,137.47,7.2742]
[1728586988133,0.9691288,137.49,137.46,18.1869]
[1728586988342,7.2748,137.46,137.43,18.1898]
[1728586988636,0.25098,137.45,137.43,7.2764]
[1728586989734,16.4292,137.46,137.43,7.2763]
[1728586989916,0.25098,137.45,137.43,7.2763]
[1728586990232,0.12549,137.45,137.43,7.2763]
[1728586991336,0.12549,137.45,137.42,18.1922]
[1728586991337,7.52638,137.45,137.42,18.1922]
[1728586991534,0.25098,137.45,137.42,18.1922]
[1728586991739,0.25098,137.45,137.42,25.469]
[1728586992034,7.52638,137.45,137.42,25.469]
[1728586992412,7.52638,137.45,137.41,7.2773]
[1728586993312,0.25098,137.45,137.39,18.1951]
[1728586993642,0.25098,137.43,137.4,7.2777]
[1728586993932,0.25098,137.43,137.39,18.1951]
[1728586994142,0.25098,137.43,137.41,7.2774]
[1728586994616,7.52738,137.43,137.39,18.1951]
[1728586994929,7.52738,137.43,137.39,25.4735]
[1728586995137,7.2783,137.4,137.36,25.4791]
[1728586995343,0.25098,137.39,137.36,18.1994]
[1728586995638,0.25098,137.39,137.37,7.2792]
[1728586996012,7.2778,137.41,137.37,7.2792]
[1728586996013,0.25098,137.4,137.37,7.2792]
[1728586996213,0.25098,137.41,137.38,1.45579989]
[1728586996443,0.12549,137.41,137.4,7.278]
[1728586996632,0.25098,137.43,137.41,7.2771]
[1728586997923,0.12549,137.43,137.42,7.2769]
[1728586998134,1.09170362,137.44,137.42,7.2769]
[1728586998436,1.09170362,137.44,137.42,25.469]
[1728587004250,0.25098,137.43,137.4,7.2778]
[1728587004949,7.52738,137.43,137.39,25.4736]
[1728587006748,0.25098,137.43,137.4,7.2776]
[1728587007931,0.25098,137.43,137.39,18.1953]
[1728587008135,1.09170362,137.44,137.43,7.2764]
[1728587009746,1.21719362,137.44,137.43,7.2764]
[1728587011755,0.25098,137.43,137.4,7.2778]
[1728587011933,0.25098,137.43,137.41,7.2773]
[1728587012257,0.25098,137.43,137.42,7.2769]
[1728587012457,0.25098,137.43,137.4,18.1937]
[1728587012757,0.25098,137.43,137.41,7.2773]
[1728587013658,0.25098,137.43,137.4,25.4712]
[1728587014033,0.25098,137.43,137.4,18.1937]
[1728587014433,0.25098,137.43,137.4,25.4715]
[1728587015050,7.52768,137.43,137.4,18.1937]
[1728587015369,0.25098,137.43,137.4,25.4716]
[1728587016166,0.25098,137.39,137.37,18.1978]
[1728587016334,0.25098,137.39,137.32,22.469]
[1728587016335,7.2791,137.38,137.34,25.4828]
[1728587016543,0.25098,137.37,137.34,25.4828]
[1728587017048,0.25098,137.38,137.34,18.2018]
[1728587017255,0.25098,137.38,137.35,7.2806]
[1728587018360,0.25098,137.39,137.35,7.2806]
[1728587018541,0.25098,137.39,137.36,7.28]
[1728587018749,16.0942,137.41,137.37,1.45596635]
[1728587018934,6.0734,137.43,137.4,7.2779]
[1728587019135,6.0734,137.43,137.39,7.2783]
[1728587019136,13.3499,137.43,137.39,7.2783]
[1728587020663,0.25098,137.42,137.39,7.2783]
[1728587020868,0.25098,137.42,137.38,18.1974]
[1728587021040,0.25098,137.4,137.38,18.1974]
[1728587021746,0.25098,137.41,137.38,25.4764]
[1728587022147,0.12549,137.36,137.33,7.2815]
[1728587022363,0.12549,137.36,137.32,18.2049]
[1728587022663,0.12549,137.35,137.32,25.487]
[1728587022849,0.12549,137.35,137.33,7.2817]
[1728587023365,7.53068,137.37,137.33,7.2816]
[1728587023659,24.027864,137.37,137.32,18.2049]
[1728587023870,0.25098,137.35,137.32,25.487]
[1728587024169,0.12549,137.32,137.29,18.2088]
[1728587024362,0.12549,137.32,137.31,7.2827]
[1728587026051,1.21811002,137.35,137.31,7.2827]
[1728587026257,1.09262002,137.35,137.32,1.45639059]
[1728587026565,1.09262002,137.35,137.33,18.204]
[1728587026743,1.09262002,137.35,137.33,25.4853]
[1728587027475,1.34360002,137.35,137.34,7.2811]
[1728587027851,1.34360002,137.35,137.33,25.4855]
[1728587029064,0.25098,137.34,137.31,7.2826]
[1728587029268,24.027864,137.34,137.3,18.2074]
[1728587029469,0.25098,137.32,137.3,18.2074]
[1728587029943,0.25098,137.33,137.3,18.2074]
[1728587030361,0.25098,137.33,137.3,25.4905]
[1728587032347,0.25098,137.34,137.3,18.2074]
[1728587032553,0.25098,137.34,137.32,7.2822]
[1728587034867,0.25098,137.34,137.3,18.2074]
[1728587034868,31.309064,137.34,137.3,25.4905]
[1728587035454,24.027864,137.34,137.28,7.284]
[1728587035667,24.027864,137.32,137.27,18.2112]
[1728587035973,24.027864,137.32,137.29,7.2837]
[1728587037463,31.310164,137.32,137.28,7.2842]
[1728587041483,24.027864,137.32,137.29,7.2835]
[1728587042378,0.25098,137.32,137.28,1.45680663]
[1728587042680,1.09262002,137.35,137.33,7.2816]
[1728587042981,1.09262002,137.35,137.28,39.82371805]
[1728587043166,1.09262002,137.35,137.34,7.2811]
[1728587043554,1.09262002,137.35,137.33,25.4857]
[1728587044371,0.12549,137.34,137.33,25.4859]
[1728587044656,1.09262002,137.35,137.33,25.4859]
[1728587044966,1.09262002,137.35,137.34,7.2811]
[1728587045357,1.09262002,137.35,137.29,36.417]
[1728587045553,7.2822,137.32,137.24,22.1737]
[1728587046270,7.2822,137.32,137.28,7.284]
[1728587046271,0.25098,137.31,137.28,7.284]
[1728587047284,24.027864,137.32,137.29,7.2835]
[1728587048379,24.027864,137.32,137.27,18.2113]
[1728587048560,31.310164,137.32,137.28,7.2841]
[1728587049059,24.027864,137.3,137.27,18.2113]
[1728587049260,24.027864,137.32,137.24,18.2151]
[1728587049475,0.25098,137.26,137.24,18.2151]
[1728587049664,24.027864,137.28,137.2,16.1532]
[1728587049981,32.40652144,137.26,137.22,7.2874]
[1728587050479,7.286,137.25,137.21,25.5072]
[1728587050664,0.25098,137.24,137.18,18.2241]
[1728587050869,24.027864,137.24,137.2,7.2884]
[1728587051070,24.027864,137.24,137.21,7.2877]
[1728587051271,24.027864,137.24,137.2,18.2211]
[1728587051272,31.313864,137.25,137.2,25.5092]
[1728587051782,31.313864,137.25,137.21,7.2879]
[1728587052372,24.027864,137.25,137.2,18.2211]
[1728587052559,24.027864,137.23,137.2,25.5094]
[1728587052767,0.25098,137.23,137.2,25.5094]
[1728587053067,0.25098,137.23,137.21,7.288]
[1728587053471,0.25098,137.23,137.22,7.2875]
[1728587054563,0.12549,137.23,137.22,7.2875]
[1728587059887,0.12549,137.23,137.21,7.2879]
[1728587060688,0.12549,137.23,137.22,7.2875]
[1728587061771,0.12549,137.23,137.22,8.74486485]
[1728587062883,1.09325744,137.26,137.25,7.2859]
[1728587063380,1.09325744,137.26,137.24,7.2863]
[1728587063600,8.37875744,137.26,137.23,18.2165]
[1728587063994,0.12549,137.25,137.23,18.2165]
[1728587064496,0.25098,137.25,137.23,25.5034]
[1728587065383,0.25098,137.25,137.23,18.2165]
[1728587065771,0.25098,137.25,137.23,25.5035]
[1728587066589,0.25098,137.25,137.24,7.2865]
[1728587067774,0.25098,137.25,137.24,8.74371784]
[1728587067967,0.25098,137.25,137.24,7.2865]
[1728587069577,0.25098,137.25,137.23,25.5032]
[1728587069776,0.25098,137.25,137.24,7.2865]
[1728587069980,0.25098,137.25,137.23,25.5033]
[1728587070578,0.25098,137.25,137.24,7.2865]
[1728587070979,0.12549,137.25,137.24,8.74366651]
[1728587071294,0.12549,137.25,137.24,7.2865]
[1728587072098,0.25098,137.25,137.24,7.2865]
[1728587072477,0.25098,137.25,137.23,25.5033]
[1728587073604,0.25098,137.25,137.24,7.2865]
[1728587076801,0.25098,137.25,137.24,8.74373808]
[1728587076986,0.25098,137.25,137.24,7.2865]
[1728587079384,1.09325744,137.26,137.24,7.2865]
[1728587079385,1.09325744,137.26,137.25,7.2859]
[1728587079686,1.09325744,137.26,137.25,29.62497002]
[1728587079883,10.71581493,137.32,137.25,22.33907002]
[1728587080205,10.71581493,137.32,137.3,25.4906]
[1728587080506,10.71581493,137.32,137.27,18.2112]
[1728587080681,7.2832,137.31,137.27,25.4959]
[1728587080882,0.25098,137.3,137.27,25.4959]
[1728587081392,0.25098,137.3,137.27,18.2112]
[1728587081591,0.25098,137.3,137.29,7.2838]
[1728587081898,0.25098,137.3,137.28,30.0]
[1728587082106,0.25098,137.3,137.28,37.2841]
[1728587082310,0.25098,137.3,137.29,7.2838]
[1728587082499,0.25098,137.3,137.29,37.2838]
[1728587083191,0.12549,137.3,137.29,37.2838]
[1728587083905,0.12549,137.3,137.29,30.0]
[1728587084409,0.25098,137.3,137.29,37.2838]
[1728587084587,0.12549,137.3,137.29,37.2838]
[1728587084787,1.09289846,137.31,137.3,7.2833]
[1728587084986,1.09289846,137.31,137.3,37.2833]
[1728587085912,1.21838846,137.31,137.3,37.2833]
[1728587086093,1.34387846,137.31,137.3,37.2833]
[1728587086483,1.34387846,137.31,137.3,30.0]
[1728587086883,1.34387846,137.31,137.3,37.2833]
[1728587088085,1.09289846,137.31,137.3,37.2833]
[1728587090513,24.027864,137.35,137.32,7.2821]
[1728587091713,1.34351702,137.35,137.33,7.2813]
[1728587091902,1.34351702,137.35,137.33,25.4854]
[1728587094027,0.25098,137.35,137.33,25.4854]
[1728587094915,0.25098,137.35,137.32,7.2821]
[1728587095915,0.25098,137.35,137.33,30.0]
[1728587097114,31.308864,137.35,137.33,30.0]
[1728587097325,7.53208,137.34,137.33,30.0]
[1728587098415,0.25098,137.34,137.33,30.0]
[1728587100204,0.25098,137.34,137.33,7.2817]
[1728587100409,0.25098,137.34,137.33,37.2817]
[1728587101208,0.25098,137.34,137.33,30.0]
[1728587103510,0.25098,137.33,137.32,30.0]
[1728587104123,0.25098,137.34,137.31,7.2825]
[1728587105717,7.53248,137.34,137.3,25.4901]
[1728587105924,0.25098,137.34,137.31,7.2827]
[1728587108126,0.25098,137.34,137.32,30.0]
[1728587109414,0.25098,137.34,137.32,37.2822]
[1728587109615,1.09271024,137.36,137.35,7.2806]
[1728587110215,8.37311024,137.36,137.32,37.2822]
[1728587110526,7.2807,137.35,137.32,37.2822]
[1728587110730,7.2807,137.35,137.32,30.0]
[1728587111033,8.37291024,137.36,137.32,37.2821]
[1728587111323,7.2817,137.33,137.32,30.0]
[1728587111526,24.027864,137.35,137.28,18.2098]
[1728587111527,7.40789,137.32,137.28,25.4937]
[1728587111722,0.12549,137.31,137.29,30.0]
[1728587111918,0.12549,137.31,137.29,37.2837]
[1728587113824,0.12549,137.31,137.29,7.2837]
[1728587115027,0.12549,137.31,137.3,7.2833]
[1728587116731,0.25098,137.32,137.29,7.2837]
[1728587117232,0.25098,137.32,137.3,7.2831]
[1728587117435,24.027864,137.33,137.3,7.2831]
[1728587118335,0.25098,137.31,137.26,34.8507]
[1728587118644,0.25098,137.31,137.27,7.2847]
[1728587118645,24.027864,137.3,137.27,7.2847]
[1728587118815,1.3438852,137.3,137.26,19.66918415]
[1728587119028,1.3438852,137.3,137.26,18.2123]
[1728587119533,8.6272852,137.3,137.26,25.4975]
[1728587119713,1.3438852,137.3,137.26,18.2123]
[1728587119914,1.3438852,137.3,137.27,7.2848]
[1728587121432,1.3438852,137.3,137.26,18.2123]
[1728587121735,8.6274852,137.3,137.26,25.4975]
[1728587122237,31.061084,137.29,137.26,18.2123]
[1728587122416,0.25098,137.28,137.26,18.2123]
[1728587122733,0.25098,137.28,137.22,15.9821]
[1728587122941,0.25098,137.26,137.24,7.2861]
[1728587124019,0.25098,137.26,137.23,25.504]
[1728587124020,7.53638,137.26,137.23,25.504]
[1728587124217,7.53638,137.26,137.2,18.2202]
[1728587124218,0.25098,137.24,137.2,18.2202]
[1728587124441,0.12549,137.23,137.2,18.2202]
[1728587124620,0.12549,137.23,137.21,7.288]
[1728587125121,24.027864,137.24,137.21,7.2879]
[1728587125332,7.2873,137.23,137.19,7.2886]
[1728587125645,7.53848,137.22,137.18,7.2894]
[1728587126640,0.25098,137.2,137.18,7.2894]
[1728587127241,0.25098,137.2,137.17,25.5143]
[1728587127537,0.25098,137.2,137.17,18.2243]
[1728587127726,0.25098,137.2,137.18,7.2893]
[1728587127920,0.25098,137.2,137.17,18.2243]
[1728587128119,23.776884,137.19,137.16,7.2906]
[1728587128322,23.776884,137.21,137.17,7.2902]
[1728587128323,0.25098,137.18,137.17,7.2902]
[1728587129421,24.027864,137.19,137.16,25.5169]
[1728587129619,24.027864,137.19,137.16,18.2263]
[1728587130132,0.25098,137.19,137.17,7.2898]
[1728587131234,0.25098,137.19,137.18,7.2896]
[1728587131434,11.81599411,137.24,137.17,1.4579181]
[1728587131934,11.81599411,137.24,137.23,7.287]
[1728587132130,11.81599411,137.24,137.22,18.2187]
[1728587132334,11.81599411,137.24,137.22,25.5061]
[1728587132735,11.81599411,137.24,137.23,7.287]
[1728587132925,11.81599411,137.24,137.22,25.5061]
[1728587133947,0.12549,137.23,137.22,25.5061]
[1728587134651,0.25098,137.23,137.22,25.5061]
[1728587135957,0.25098,137.23,137.21,7.2879]
[1728587136126,31.314864,137.23,137.19,25.5106]
[1728587136455,31.315864,137.21,137.2,30.0]
[1728587136639,24.027864,137.21,137.2,30.0]
[1728587137627,24.027864,137.21,137.2,37.2886]
[1728587137831,24.027864,137.21,137.2,30.0]
[1728587138141,0.25098,137.21,137.19,7.2887]
[1728587138542,0.25098,137.21,137.2,7.2886]
[1728587140356,0.25098,137.21,137.18,25.5135]
[1728587140650,0.25098,137.21,137.19,30.0]
[1728587141235,0.25098,137.21,137.17,7.2902]
[1728587141236,23.776884,137.2,137.17,7.2902]
[1728587141460,0.25098,137.19,137.16,7.2906]
[1728587142838,0.25098,137.19,137.17,7.2901]
[1728587144250,0.25098,137.19,137.18,7.2896]
[1728587149560,0.25098,137.19,137.17,18.2252]
[1728587149866,24.027864,137.2,137.17,25.515]
[1728587151147,0.25098,137.2,137.17,18.2252]
[1728587151333,24.027864,137.2,137.17,25.5151]
[1728587153056,31.316464,137.2,137.17,25.5151]
[1728587154558,24.027864,137.2,137.17,25.5151]
[1728587155540,24.027864,137.18,137.14,18.2282]
[1728587155740,25.12166306,137.18,137.15,7.2909]
[1728587156064,0.25098,137.16,137.14,18.2282]
[1728587156239,0.25098,137.14,137.12,7.2925]
[1728587156443,0.25098,137.14,137.11,25.5254]
[1728587157047,23.776884,137.13,137.11,18.2322]
[1728587157255,0.25098,137.12,137.11,18.2322]
[1728587158755,0.25098,137.12,137.1,7.2938]
[1728587159446,0.25098,137.12,137.08,25.5311]
[1728587159761,0.25098,137.12,137.1,7.2939]
[1728587159949,0.25098,137.12,137.08,18.2362]
[1728587159950,0.25098,137.12,137.11,7.2934]
[1728587160273,0.25098,137.12,137.1,25.5282]
[1728587161052,0.25098,137.12,137.11,7.2934]
[1728587162062,1.09442314,137.13,137.12,7.2928]
[1728587163244,1.34540314,137.13,137.12,7.2928]
[1728587165362,1.34540314,137.13,137.12,23.0580107]
[1728587165568,1.21991314,137.13,137.12,23.0580107]
[1728587166057,1.21991314,137.13,137.12,7.2928]
[1728587166663,1.21991314,137.13,137.11,14.30675788]
[1728587166664,0.12549,137.12,137.11,7.2932]
[1728587166847,0.25098,137.12,137.11,7.2932]
[1728587168269,0.25098,137.12,137.1,25.5282]
[1728587168451,24.027864,137.12,137.1,25.5282]
[1728587169552,24.027864,137.12,137.1,18.2345]
[1728587169756,24.027864,137.12,137.1,25.5283]
[1728587169953,0.25098,137.12,137.1,18.2345]
[1728587170146,0.25098,137.12,137.11,7.2934]
[1728587171452,0.25098,137.12,137.11,8.75202302]
[1728587171646,1.09442314,137.13,137.12,7.2928]
[1728587171848,1.09442314,137.13,137.12,8.75124596]
[1728587172047,8.38339906,137.18,137.14,25.5209]
[1728587172952,7.2902,137.17,137.14,18.2295]
[1728587173150,24.027864,137.16,137.13,7.2921]
[1728587173349,31.318564,137.16,137.13,7.2921]
[1728587173553,0.25098,137.14,137.11,18.2325]
[1728587173759,24.027864,137.14,137.11,18.2325]
[1728587173959,31.321164,137.12,137.08,25.5312]
[1728587174160,24.027864,137.12,137.09,7.2944]
[1728587174647,24.027864,137.12,137.03,23.6372272]
[1728587174970,24.027864,137.12,137.11,7.2934]
[1728587175175,0.12549,137.12,137.1,18.2346]
[1728587175345,0.12549,137.14,137.05,36.4821]
[1728587175545,7.41759,137.14,137.1,7.2938]
[1728587176570,0.12549,137.12,137.1,7.2938]
[1728587178972,0.12549,137.12,137.09,18.236]
[1728587179277,0.25098,137.1,137.07,7.2953]
[1728587179682,24.027864,137.1,137.07,7.2953]
[1728587180858,24.027864,137.1,137.06,18.239]
[1728587181214,31.321764,137.1,137.06,25.535]
[1728587181353,24.027864,137.1,137.03,70.4424]
[1728587181679,24.027864,137.1,137.03,18.2431]
[1728587181864,24.027864,137.07,137.04,7.2969]
[1728587183956,0.25098,137.07,137.05,7.296]
[1728587184864,0.12549,137.07,137.06,7.296]
[1728587185063,0.12549,137.07,137.02,0.8436388]
[1728587185269,0.12549,137.07,137.04,7.2971]
[1728587185686,0.12549,137.08,137.05,7.2965]
[1728587186189,24.027864,137.08,137.05,7.2965]
[1728587186567,31.322864,137.08,137.04,25.5393]
[1728587187384,31.322864,137.08,137.04,25.5394]
[1728587187582,0.25098,137.08,137.04,25.5394]
[1728587188592,0.25098,137.08,137.03,7.2974]
[1728587189382,24.027864,137.06,137.03,7.2974]
[1728587191783,0.12549,137.06,137.05,7.2966]
[1728587192170,17.37709195,137.1,137.05,18.241]
[1728587192490,17.37709195,137.1,137.07,7.2951]
[1728587192491,10.73299195,137.1,137.07,7.2951]
[1728587193200,12.4029995,137.1,137.07,7.2951]
[1728587193698,24.027864,137.09,137.07,7.2951]
[1728587194692,24.027864,137.09,137.07,18.2382]
[1728587194996,24.027864,137.09,137.08,7.295]
[1728587196179,12.4029995,137.1,137.07,18.2382]
[1728587196379,12.4029995,137.1,137.09,7.2944]
[1728587196579,12.4029995,137.1,137.08,7.2947]
[1728587197288,10.73299195,137.1,137.08,7.2947]
[1728587197992,0.25098,137.09,137.08,7.2947]
[1728587202386,31.322564,137.09,137.05,7.2965]
[1728587203486,7.295,137.08,137.05,7.2965]
[1728587203793,24.027864,137.07,137.04,25.5388]
[1728587205502,24.027864,137.07,137.05,7.2965]
[1728587206007,24.027864,137.07,137.04,25.5389]
[1728587209022,24.027864,137.07,137.06,7.296]
[1728587209307,24.027864,137.07,137.04,18.2419]
[1728587209308,0.25098,137.07,137.05,7.2964]
[1728587210183,33.54389195,137.1,137.06,18.24]
[1728587210386,10.73299195,137.1,137.08,7.2949]
[1728587211292,18.02689195,137.1,137.07,7.2954]
[1728587211490,10.73299195,137.1,137.07,7.2954]
[1728587211689,0.25098,137.09,137.07,7.2954]
[1728587212312,0.25098,137.09,137.08,7.295]
[1728587221087,10.73299195,137.1,137.09,7.2944]
[1728587222585,10.73299195,137.1,137.07,7.2952]
[1728587222794,0.25098,137.1,137.07,7.2952]
[1728587224387,0.25098,137.1,137.08,7.2946]
[1728587225419,0.25098,137.1,137.09,7.2944]
[1728587226694,0.25098,137.1,137.08,7.2949]
[1728587227790,0.25098,137.1,137.09,8.75312739]
[1728587228299,0.25098,137.1,137.09,7.2944]
[1728587230010,7.54518,137.1,137.06,7.296]
[1728587230211,7.54518,137.1,137.04,33.4568]
[1728587230212,24.027864,137.1,137.04,18.2415]
[1728587230717,0.25098,137.06,137.04,18.2415]
[1728587231108,0.25098,137.06,137.03,7.2974]
[1728587231319,0.25098,137.04,137.0,22.3273]
[1728587231704,0.25098,137.04,137.0,16.0707]
[1728587231920,0.25098,137.04,136.99,36.4979]
[1728587232129,0.25098,137.05,137.02,8.1417388]
[1728587232622,7.54758,137.05,137.02,8.1417388]
[1728587232827,0.25098,137.05,137.02,8.1417388]
[1728587233211,24.027864,137.05,137.02,8.1417388]
[1728587235624,0.25098,137.05,137.02,19.0890388]
[1728587235920,0.25098,137.05,137.04,7.2971]
[1728587236304,0.12549,137.05,137.04,7.2971]
[1728587237605,0.25098,137.05,137.04,7.2971]
[1728587238605,0.12549,137.05,137.04,7.2971]
[1728587240207,0.25098,137.05,137.04,7.2971]
[1728587240725,28.15316004,137.11,137.04,22.40862408]
[1728587240907,28.15316004,137.11,137.07,25.5338]
[1728587241251,7.294,137.1,137.07,18.2388]
[1728587241435,7.2958,137.07,137.03,7.2973]
[1728587242114,0.25098,137.06,137.03,7.2973]
[1728587244023,0.25098,137.06,137.02,0.8436388]
[1728587244235,0.25098,137.06,137.05,7.2966]
[1728587246310,1.09464129,137.09,137.08,7.295]
[1728587246634,1.09464129,137.09,137.08,8.7538344]
[1728587246822,1.09464129,137.09,137.07,25.534]
[1728587247817,0.25098,137.08,137.07,25.534]
[1728587249135,0.25098,137.08,137.04,18.2416]
[1728587249526,7.54598,137.08,137.04,25.5383]
[1728587250020,7.54598,137.08,137.04,18.2416]
[1728587250230,0.25098,137.08,137.05,7.2965]
[1728587250920,31.322964,137.08,137.04,18.2416]
[1728587251131,31.322964,137.08,137.05,7.2965]
[1728587251329,24.027864,137.08,137.05,7.2965]
[1728587254011,31.323164,137.08,137.04,25.5385]
[1728587254228,24.027864,137.08,137.04,18.2416]
[1728587254434,0.25098,137.06,137.04,18.2416]
[1728587257743,24.027864,137.06,137.04,18.2416]
[1728587259121,24.027864,137.06,137.03,7.2974]
[1728587259327,31.323964,137.06,137.03,7.2974]
[1728587259737,24.027864,137.06,137.03,7.2974]
[1728587260821,22.09917342,137.06,137.03,7.2974]
[1728587261022,0.12549,137.05,137.03,7.2974]
[1728587261918,0.12549,137.05,137.02,19.0890388]
[1728587262142,7.42209,137.05,137.02,19.0890388]
[1728587262439,7.42209,137.05,137.02,26.3871388]
[1728587262738,0.12549,137.05,137.02,26.3871388]
[1728587262932,0.12549,137.04,137.02,26.3871388]
[1728587263840,23.902374,137.04,137.02,19.0890388]
[1728587264143,0.12549,137.03,137.02,0.8436388]
[1728587267642,0.12549,137.03,137.02,8.1418388]
[1728587270055,0.12549,137.03,137.02,0.8436388]
[1728587270626,31.199974,137.03,137.02,0.8436388]
[1728587270928,31.325464,137.03,137.02,0.8436388]
[1728587271941,24.027864,137.03,137.02,0.8436388]
[1728587272855,24.027864,137.03,137.02,8.1418388]
[1728587273159,0.25098,137.03,137.02,8.1418388]
[1728587274950,0.25098,137.03,137.02,0.8436388]
[1728587276855,0.25098,137.03,137.02,8.1418388]
[1728587280659,0.25098,137.03,137.02,22.48247217]
[1728587280835,1.09509553,137.04,137.03,7.2976]
[1728587281030,1.09509553,137.04,137.03,21.63823337]
[1728587281753,1.09509553,137.04,137.03,23.09749946]
[1728587282578,1.09509553,137.04,137.03,29.68285929]
[1728587282861,1.09464129,137.09,137.03,22.38525929]
[1728587283046,1.09464129,137.09,137.08,7.295]
[1728587284246,1.22013129,137.09,137.08,7.295]
[1728587284850,1.09464129,137.09,137.08,7.295]
[1728587286149,1.09464129,137.09,137.08,8.75374377]
[1728587287752,1.09464129,137.09,137.08,7.295]
[1728587288354,1.09464129,137.09,137.08,8.75344461]
[1728587288970,16.5619,137.18,137.08,1.45844461]
[1728587289149,16.5619,137.18,137.14,18.2291]
[1728587289349,23.8519,137.18,137.14,25.5207]
[1728587290255,0.25098,137.16,137.14,25.5207]
[1728587290953,0.25098,137.16,137.14,18.2291]
[1728587291154,0.25098,137.16,137.14,25.5205]
[1728587292361,0.25098,137.16,137.13,7.2923]
[1728587292769,24.027864,137.12,137.09,7.294]
[1728587293276,24.027864,137.12,137.08,25.5315]
[1728587293277,31.320964,137.12,137.08,25.5315]
[1728587294877,0.25098,137.08,137.05,25.5366]
[1728587295255,24.027864,137.08,137.05,25.5366]
[1728587295454,31.322864,137.08,137.05,18.2402]
[1728587295671,31.322864,137.08,137.03,7.2975]
[1728587295875,0.25098,137.06,137.03,7.2975]
[1728587296065,0.25098,137.06,137.02,19.0880388]
[1728587296066,7.54708,137.06,137.02,26.3860388]
[1728587296247,23.776884,137.05,137.02,19.0880388]
[1728587296465,0.25098,137.04,137.02,19.0880388]
[1728587296777,0.25098,137.04,137.02,26.3860388]
[1728587297684,0.25098,137.04,137.02,19.0880388]
[1728587298465,0.12549,137.04,137.02,26.3861388]
[1728587299077,1.34589985,137.05,137.03,7.2976]
[1728587299654,1.34589985,137.05,137.02,19.0880388]
[1728587299867,1.34589985,137.05,137.02,26.3860388]
[1728587300574,23.776884,137.04,137.02,19.0880388]
[1728587300784,0.25098,137.03,137.02,26.3862388]
[1728587308479,24.027864,137.06,137.03,7.2973]
[1728587308813,24.027864,137.06,137.02,19.0880388]
[1728587308975,31.323964,137.06,137.02,26.3858388]
[1728587309582,24.027864,137.06,137.03,7.2976]
[1728587313285,0.25098,137.06,137.04,7.297]
[1728587313773,0.25098,137.06,137.04,25.5397]